Cogmind - Beta 10 @@@ ROGUE MODE // 2020.09.18 @ 06:52:21 Player: Sudoku Result: Core destroyed Performance ------------- Evolutions (5) 2500 Regions Visited (13) 2600 Robots Destroyed (106) 530 Value Destroyed (4577) 4577 Prototype IDs (33) 660 Alien Tech Used (0) 0 Bonus (2341) 2341 TOTAL SCORE: 13208 Bonus ------- High Alert Combat Kills 807 Follower Combat Kills 346 Entered Garrisons 400 Used RIF Installer 1000 Friendly Fire -212 Cogmind --------- Core Integrity 0/1000 Matter 160/300 Energy 299/360 System Corruption 0% Temperature Cool (611) Movement Core (1550) Ox30 Location -5/Upper Caves Parts ------- > --- POWER (2) -------- Light Nuclear Core Enhanced Nuclear Core > --- PROPULSION (3) --- Light Treads > --- UTILITY (8) ------ Large Storage Unit Large Storage Unit Layered Heavy Armor Plating Relay Coupler [NC] (30) Relay Coupler [Grunt] (33) Relay Coupler [Sentry] (13) > --- WEAPON (4) ------- Phase Cannon Assault Cannon Mini Assault Cannon Mass Driver > --- INVENTORY (16) --- Relay Coupler [NC] (35) Relay Coupler [NC] (32) Relay Coupler [Duelist] (32) Relay Coupler [Demolisher] (24) Relay Coupler [Specialist] (28) Relay Coupler [Hunter] (18) Relay Coupler [Hunter] (20) Disruptor Cannon Advanced Assault Cannon Mini Assault Cannon Rocket Array Datajack Plasma Flamer Peak State ------------ > --- POWER ------------ Improved Deuterium Engine Enhanced Nuclear Core > --- PROPULSION ------- Light Treads Armored Huge Wheel > --- UTILITY ---------- Large Storage Unit Large Storage Unit Improved Weapon Cycler Layered Heavy Armor Plating Relay Coupler [NC] Relay Coupler [Grunt] Relay Coupler [Sentry] > --- WEAPON ----------- YOLO Cannon Assault Cannon Mass Driver > --- INVENTORY -------- Light Nuclear Core Layered Heavy Armor Plating Relay Coupler [NC] Relay Coupler [NC] Relay Coupler [Duelist] Relay Coupler [Demolisher] Relay Coupler [Specialist] Relay Coupler [Hunter] Relay Coupler [Hunter] Phase Cannon Mini Assault Cannon Mini Assault Cannon Rocket Array Datajack [Rating: 81] Favorites ----------- Power Light Nuclear Core Engine Light Deuterium Engine Power Core Light Nuclear Core Propulsion Carbon-fiber Leg Treads Light Treads Leg Carbon-fiber Leg Wheel Armored Huge Wheel Flight Unit Flight Unit Utility Large Storage Unit Device Makeshift Transmission Jammer Storage Large Storage Unit Processor Improved Signal Interpreter Hackware Relay Coupler [NC] Protection Hardened Medium Armor Plating Weapon Flak Gun Energy Gun Precision Beam Rifle Energy Cannon YOLO Cannon Ballistic Gun Flak Gun Ballistic Cannon Assault Cannon Launcher Rocket Array Slashing Weapon Great Axe Special Melee Weapon Datajack Build | -11 -10 -10 -10 -9 -8 -8 -8 -8 -7 -7 -7 -5 -5 ------- Run | Scr Mat Min Exi Min Mat Gar Mat Gar Fac Sto Rec Fac Upp Slots Evolved 10 | . . . . . 4 . . . 2 . . 4 . Power 1 | . . . . . . . . . . . . 1 . Propulsion 1 | . . . . . 1 . . . . . . . . Utility 6 | . . . . . 2 . . . 2 . . 2 . Weapon 2 | . . . . . 1 . . . . . . 1 . Parts Attached 121 | 6 1 5 3 . 16 18 6 26 1 20 5 10 4 Power 10 | 1 . 1 . . 1 2 . 2 . 1 . 1 1 Engine 5 | 1 . . . . . 1 . 2 . . . 1 . Core 5 | . . 1 . . 1 1 . . . 1 . . 1 Reactor . | . . . . . . . . . . . . . . Propulsion 27 | 2 . 1 . . 3 4 . 8 . 8 1 . . Treads 2 | . . . . . . . . . . 2 . . . Leg 18 | 2 . 1 . . 3 4 . 4 . 4 . . . Wheel 1 | . . . . . . . . . . . 1 . . Hover . | . . . . . . . . . . . . . . Flight 6 | . . . . . . . . 4 . 2 . . . Utility 28 | 1 1 1 3 . 4 2 4 1 . 2 3 5 1 Device 4 | . 1 . . . 1 . . . . . . 2 . Storage 6 | 1 . . 3 . 2 . . . . . . . . Processor 2 | . . . . . . . . . . 1 1 . . Hackware 7 | . . . . . . 1 3 . . 1 . 2 . Protection 9 | . . 1 . . 1 1 1 1 . . 2 1 1 Artifact . | . . . . . . . . . . . . . . Weapon 56 | 2 . 2 . . 8 10 2 15 1 9 1 4 2 Energy Gun 8 | 2 . . . . 3 1 . . . 2 . . . Energy Cannon 8 | . . 1 . . . 1 . 4 . 1 . . 1 Ballistic Gun 19 | . . 1 . . 4 6 1 7 . . . . . Ballistic Cannon 8 | . . . . . 1 1 . . . 3 . 2 1 Launcher 3 | . . . . . . 1 . . . 2 . . . Special Weapon . | . . . . . . . . . . . . . . Impact Weapon . | . . . . . . . . . . . . . . Slashing Weapon 6 | . . . . . . . . 3 . 1 . 2 . Piercing Weapon . | . . . . . . . . . . . . . . Special Melee Weapon 4 | . . . . . . . 1 1 1 . 1 . . Unidentified Prototypes 10 | . . . . . 4 . . . . 6 . . . Parts Lost 28 | . . . . . . 4 3 11 . 5 1 1 3 Power 5 | . . . . . . 1 . 2 . 1 . . 1 Propulsion 11 | . . . . . . 1 1 5 . 3 . . 1 Utility 6 | . . . . . . 1 1 2 . . 1 . 1 Weapon 6 | . . . . . . 1 1 2 . 1 . 1 . Highest Loss Streak 6 | . . . . . . 2 2 6 . 4 1 1 3 Average Slot Usage (%) 91 | . 92 100 99 100 99 99 97 87 69 73 86 82 87 Engine 4 | . 14 10 . . . 6 9 7 7 . . 5 4 Core 4 | . . 3 14 14 9 2 . . . 4 7 5 5 Treads 1 | . . . . . . . . . . . 12 5 5 Leg 17 | . 28 28 28 28 27 26 24 13 7 7 5 . . Flight 2 | . . . . . . . . 8 15 9 . . . Device 3 | . 7 2 . . 9 8 . . . . . 7 4 Storage 16 | . 14 14 17 28 18 18 18 18 15 15 15 11 11 Processor 1 | . . . . . . . . . . 6 7 1 . Hackware 6 | . . . . . . . 12 9 7 9 15 14 17 Protection 6 | . . 11 10 . 9 9 5 5 . . 3 5 5 Energy Gun 2 | . 28 12 . . 7 3 5 . . 1 . . . Energy Cannon 4 | . . 7 14 14 2 . . 2 7 3 7 4 5 Ballistic Gun 11 | . . 7 14 14 11 21 17 18 . . . . . Ballistic Cannon 2 | . . . . . 4 . . . . 7 . 6 17 Naked Turns . | . . . . . . . . . . . . . . Heaviest Build 103 | 11 12 26 30 30 62 62 55 70 57 65 67 103 97 Greatest Support 47 | 20 20 27 27 27 47 47 45 45 10 40 40 28 28 Greatest Overweight (x) 30 | 1 . . 1 1 1 1 1 14 5 17 2 3 30 Average Overweight (x) 1 | . . . . 1 1 1 1 2 5 2 1 2 3 Largest Inventory Capacity 16 | 6 6 6 12 12 16 16 16 16 16 16 16 16 16 Average Capacity 14 | 5 6 6 6 12 15 16 16 16 16 16 16 16 16 Most Carried 16 | 6 6 6 10 12 16 16 16 16 16 16 16 16 16 Average Carried 14 | 3 6 5 6 11 15 15 15 15 16 15 15 15 13 Final Capacity 16 | 6 6 6 12 12 16 16 16 16 16 16 16 16 16 Final Carried 16 | 6 6 6 10 12 16 16 13 16 16 15 16 15 13 Class Distribution -------------------- 35% | Bothacker-Mutant 22% | Mutant 17% | Tank 10% | Bothacker-Tank 6% | Scavenger-Tank 3% | Bothacker-Gunner Dominant Class ---------------- Mutant | -10/Materials Mutant | -10/Mines Mutant | -10/Exiles Mutant | -9/Mines Tank | -8/Materials Tank | -8/Garrison Scavenger-Tank | -8/Materials Bothacker-Mutant | -8/Garrison Bothacker-Mutant | -7/Factory Bothacker-Mutant | -7/Storage Bothacker-Mutant | -7/Recycling Bothacker-Mutant | -5/Factory Bothacker-Tank | -5/Upper Caves Resources | -11 -10 -10 -10 -9 -8 -8 -8 -8 -7 -7 -7 -5 -5 ----------- Run | Scr Mat Min Exi Min Mat Gar Mat Gar Fac Sto Rec Fac Upp Matter Collected 2933 | 260 . 68 . 30 431 938 170 209 . 367 298 100 62 Remotely . | . . . . . . . . . . . . . . Salvage Created 3739 | 58 . 99 38 42 685 1176 375 316 . 479 221 232 18 Parts 207 | 1 . 5 . 1 40 53 21 28 . 35 11 12 . Haulers Intercepted 3 | . . . . . 2 . . . . 1 . . . Recyclers Shooed 2 | . . . . . . . . . . 1 . 1 . Parts Field Recycled . | . . . . . . . . . . . . . . Retrieved Matter . | . . . . . . . . . . . . . . Parts Self-Destructed . | . . . . . . . . . . . . . . Prevented . | . . . . . . . . . . . . . . Kills | -11 -10 -10 -10 -9 -8 -8 -8 -8 -7 -7 -7 -5 -5 ------- Run | Scr Mat Min Exi Min Mat Gar Mat Gar Fac Sto Rec Fac Upp Combat Hostiles Destroyed 83 | . . 2 . 1 14 23 5 15 . 10 7 5 1 Guns 37 | . . 1 . . 8 17 5 6 . . . . . Cannons 20 | . . 1 . 1 6 . . 3 . 6 1 1 1 AOE 25 | . . . . . . 6 . 6 . 3 6 4 . Classes Destroyed 13 | 1 . 1 . . 5 2 1 . . 2 1 . . Worker 5 | . . . . . . . . . . 2 . 3 . Builder 3 | . . . . . . . . . . 2 1 . . Hauler 3 | . . . . . 2 . . . . 1 . . . Recycler 2 | 1 . . . . . . 1 . . . . . . Operator 4 | . . . . . . . 2 . . 2 . . . Drone 4 | . . . . . . . . . . . 4 . . Watcher 6 | . . . . . . 2 . . . 2 . 2 . Swarmer 15 | . . . . . 3 . 2 10 . . . . . Grunt 36 | . . 2 . 1 3 19 . 2 . 4 3 2 . Brawler 1 | . . . . . . 1 . . . . . . . Duelist 4 | . . . . . 1 2 . . . . . 1 . Sentry 14 | . . . . . 5 . 2 . . 6 . . 1 Hunter 9 | . . . . . 2 1 1 3 . . . 2 . Best Kill Streak 8 | 1 . 2 . 1 3 4 4 4 . 7 8 5 1 Combat Bots Only 4 | . . 2 . 1 3 4 3 4 . 2 4 2 1 Max Kills in Single Turn 6 | 1 . 1 . 1 1 1 2 3 . 6 3 2 1 Gunslinging . | . . . . . . . . . . . . . . Exploded 3 | . . . . . . 1 . 2 . 1 3 2 . Melee . | . . . . . . . . . . . . . . Uniques/NPCs Destroyed . | . . . . . . . . . . . . . . Combat | -11 -10 -10 -10 -9 -8 -8 -8 -8 -7 -7 -7 -5 -5 -------- Run | Scr Mat Min Exi Min Mat Gar Mat Gar Fac Sto Rec Fac Upp Damage Taken 7050 | . . 11 . 11 487 1217 510 1418 . 858 109 893 1536 Core 1596 | . . . . . 27 125 78 229 . 86 . 23 1028 Absorbed by Shields 149 | . . . . . . . . . . . 8 141 . Core Remaining (%) 75 | 100 . . . 100 . . . 16 . . 87 . . Volleys Fired 268 | 3 . 5 2 1 46 89 18 35 . 29 12 17 11 Largest 4 | 2 . 2 1 1 3 3 3 2 . 3 1 2 4 Hottest 239 | 80 . 100 75 75 156 117 117 100 . 144 100 101 239 Shots Fired 555 | 6 . 7 2 1 109 212 44 54 . 56 12 18 34 Gun 367 | 6 . 2 . . 68 204 44 43 . . . . . Cannon 180 | . . 5 2 1 41 1 . 11 . 55 12 18 34 Launcher 8 | . . . . . . 7 . . . 1 . . . Special . | . . . . . . . . . . . . . . Kinetic 392 | . . 2 . . 64 185 26 43 . 42 . 5 25 Thermal 155 | 6 . 5 2 1 45 20 18 11 . 13 12 13 9 Explosive 8 | . . . . . . 7 . . . 1 . . . Electromagnetic . | . . . . . . . . . . . . . . Robot Hit Streak 15 | 3 . 6 1 2 15 8 11 6 . 10 1 2 5 Robot Miss Streak 10 | 1 . 2 3 . 7 8 8 10 . 6 6 6 3 Penetration Max . | . . . . . . . . . . . . . . Secondary Targets 4 | . . . . . . 2 1 1 . . . . . Max Gunslinging Chain 1 | . . . . . . 1 1 1 . . . . . Shots Hit Robots 384 | 5 . 4 1 1 62 144 41 39 2 31 27 7 20 Core Hits 227 | 2 . 3 2 1 23 89 22 32 . 29 8 13 3 Critical Hits 9 | . . . . . . 1 . . . 5 . 3 . Critical Kills 2 | . . . . . . 1 . . . 1 . . . Critical Parts Destroyed 6 | . . . . . . . . . . 3 . 3 . Melee Attacks 56 | . . . . . . . 8 11 6 2 27 2 . Impact . | . . . . . . . . . . . . . . Slashing 13 | . . . . . . . . 11 . 2 . . . Piercing . | . . . . . . . . . . . . . . Sneak Attacks 27 | . . . . . . . . . . 2 25 . . Combat Hostiles 1 | . . . . . . . . . . . 1 . . Follow-up Attacks . | . . . . . . . . . . . . . . Damage Inflicted 12662 | 55 . 117 50 25 1183 2520 478 1902 . 2649 1151 1996 536 Guns 3594 | 55 . 17 . . 777 1878 478 389 . . . . . Cannons 4155 | . . 100 50 25 406 . . 767 . 1429 314 528 536 Explosions 4718 | . . . . . . 642 . 746 . 1028 837 1465 . Melee 192 | . . . . . . . . . . 192 . . . Ramming 3 | . . . . . . . . . . . . 3 . Kinetic 3879 | . . 17 . . 578 1641 244 389 . 689 . . 321 Thermal 7581 | 55 . 100 50 25 605 237 234 1513 . 1403 1151 1993 215 Explosive 1007 | . . . . . . 642 . . . 365 . . . Electromagnetic . | . . . . . . . . . . . . . . Impact . | . . . . . . . . . . . . . . Slashing 192 | . . . . . . . . . . 192 . . . Piercing . | . . . . . . . . . . . . . . Highest Corruption 2 | . . . . . 2 2 2 2 . . . . . Average Corruption 2 | . . . . . 2 2 2 2 . . . . . Corruption Purged . | . . . . . . . . . . . . . . Effects 54 | . . . . . 8 25 8 13 . . . . . Message Errors 13 | . . . . . . 6 4 3 . . . . . Heat Flow Errors 9 | . . . . . 2 4 1 2 . . . . . Energy Discharges 13 | . . . . . 2 4 2 5 . . . . . Data Loss (minor) 9 | . . . . . 3 3 1 2 . . . . . Targeting Errors 8 | . . . . . 1 6 . 1 . . . . . Weapon Failures 2 | . . . . . . 2 . . . . . . . Overload Shots . | . . . . . . . . . . . . . . Overflow Damage 1276 | . . 20 . . . 1 . 464 . 317 304 170 . Projectiles 663 | . . 20 . . . . . 307 . 139 194 3 . Explosions 461 | . . . . . . 1 . 157 . 26 110 167 . Melee 152 | . . . . . . . . . . 152 . . . Knockbacks 4 | . . . . . 1 . . . . 3 . . . Impact . | . . . . . . . . . . . . . . Kinetic 4 | . . . . . 1 . . . . 3 . . . Secondary . | . . . . . . . . . . . . . . Self-Inflicted Damage 551 | . . . . . . 87 . 54 . 98 71 241 . Shots 11 | . . . . . . 2 . 1 . 2 1 5 . Rammed 1 | . . . . . . . . . . . . 1 . Targets Rammed 1 | . . . . . . . . . . . . 1 . Kicked . | . . . . . . . . . . . . . . Crushed . | . . . . . . . . . . . . . . Highest Temperature 1132 | 54 . 119 48 38 450 438 261 272 . 376 19 243 1132 Average Temperature 146 | 29 . 41 26 21 148 111 73 85 . 116 13 99 805 Received Heat Transfer 1403 | . . 6 . 6 189 513 90 18 . 237 22 214 108 Effects 49 | . . . . . 5 4 . . . . . . 40 Shutdowns 16 | . . . . . 2 2 . . . . . . 12 Energy Bleed 5 | . . . . . 2 1 . . . . . . 2 Interference 5 | . . . . . . . . . . . . . 5 Matter Decay 4 | . . . . . . . . . . . . . 4 Short Circuit 5 | . . . . . 1 . . . . . . . 4 Damage (minor) 4 | . . . . . . 1 . . . . . . 3 Damage (major) 3 | . . . . . . . . . . . . . 3 Damage (core) 7 | . . . . . . . . . . . . . 7 Siege Activations . | . . . . . . . . . . . . . . Robots Corrupted . | . . . . . . . . . . . . . . Combat Hostiles . | . . . . . . . . . . . . . . Parts Fried . | . . . . . . . . . . . . . . Impact Corruptions . | . . . . . . . . . . . . . . Robots Melted 1 | . . . . . . . . . . 1 . . . Combat Hostiles 1 | . . . . . . . . . . 1 . . . Parts Melted 6 | 2 . . . . 1 1 . . . 2 . . . Heat Transferred 8790 | 125 . 148 74 37 1221 518 518 1440 . 1280 1120 2050 259 Parts Sabotaged . | . . . . . . . . . . . . . . Parts Stolen . | . . . . . . . . . . . . . . Parts Stripped . | . . . . . . . . . . . . . . Power Chain Reactions . | . . . . . . . . . . . . . . Missiles Intercepted . | . . . . . . . . . . . . . . Alert | -11 -10 -10 -10 -9 -8 -8 -8 -8 -7 -7 -7 -5 -5 ------- Run | Scr Mat Min Exi Min Mat Gar Mat Gar Fac Sto Rec Fac Upp Peak Influence 1438 | 5 3 50 . 56 521 1194 856 477 239 367 344 1438 . Initial 1039 | . 3 . . . 21 265 581 103 239 108 75 1039 . Average 471 | . 3 5 . 46 386 822 607 399 239 216 248 1126 . Maximum Alert Level 4 | . . . . . 2 4 3 2 1 1 1 4 . Low Security (%) 22 | 100 100 100 . 100 14 . 14 7 . 49 25 . . Level 1 21 | . . . . . 21 3 7 13 100 50 74 . . Level 2 33 | . . . . . 63 32 41 78 . . . . . Level 3 16 | . . . . . . 47 37 . . . . 66 . Level 4 5 | . . . . . . 16 . . . . . 33 . Level 5 . | . . . . . . . . . . . . . . High Security . | . . . . . . . . . . . . . . Max Security . | . . . . . . . . . . . . . . Squads Dispatched 13 | . . 1 . . 1 . 3 . . 3 1 4 . Investigation 2 | . . 1 . . . . . . . 1 . . . Extermination 1 | . . . . . . . . . . . . 1 . Reinforcement 9 | . . . . . 1 . 3 . . 2 1 2 . Assault 1 | . . . . . . . . . . . . 1 . Garrison . | . . . . . . . . . . . . . . Intercept . | . . . . . . . . . . . . . . Construction Impeded 2 | . . . . . . . . . . . 1 1 . Haulers Reinforced 1 | . . . . . . . . . . . . 1 . Stealth | -11 -10 -10 -10 -9 -8 -8 -8 -8 -7 -7 -7 -5 -5 --------- Run | Scr Mat Min Exi Min Mat Gar Mat Gar Fac Sto Rec Fac Upp Distress Signals 11 | . . . . . 1 . 6 . . 2 . 2 . Communications Jammed 46 | . . . . . 26 20 . . . . . . . Distress Signals 46 | . . . . . 26 20 . . . . . . . Times Spotted 164 | . . 1 . 2 30 30 24 14 1 16 27 18 1 Peak Tracking Total 7 | . . 1 . 2 4 5 7 7 1 4 5 6 1 Tactical Retreats 13 | . . . . . . 3 2 2 . 4 . 2 . Traps | -11 -10 -10 -10 -9 -8 -8 -8 -8 -7 -7 -7 -5 -5 ------- Run | Scr Mat Min Exi Min Mat Gar Mat Gar Fac Sto Rec Fac Upp Traps Triggered 9 | . . . . . 1 4 . 3 . 1 . . . Indirectly . | . . . . . . . . . . . . . . Trap Hack Attempts 12 | . . . . . . . . . . . . 12 . Triggered . | . . . . . . . . . . . . . . Disarmed . | . . . . . . . . . . . . . . Reprogrammed 1 | . . . . . . . . . . . . 1 . Reused . | . . . . . . . . . . . . . . Traps Extracted . | . . . . . . . . . . . . . . Installed . | . . . . . . . . . . . . . . Triggered . | . . . . . . . . . . . . . . Machines | -11 -10 -10 -10 -9 -8 -8 -8 -8 -7 -7 -7 -5 -5 ---------- Run | Scr Mat Min Exi Min Mat Gar Mat Gar Fac Sto Rec Fac Upp Machines Disabled 30 | . . . . . 3 4 1 2 . 5 3 12 . Max in Single Turn 5 | . . . . . 1 2 . 1 . 1 1 5 . Garrison Access 1 | . . . . . . . . . . 1 . . . Garrison Relay 4 | . . . . . . 3 . 1 . . . . . Phase Generator 1 | . . . . . . 1 . . . . . . . Machines Sabotaged . | . . . . . . . . . . . . . . Garrisons Compromised . | . . . . . . . . . . . . . . Overloaded Fab Kills . | . . . . . . . . . . . . . . Fab Network Shutdowns . | . . . . . . . . . . . . . . Hacking | -11 -10 -10 -10 -9 -8 -8 -8 -8 -7 -7 -7 -5 -5 --------- Run | Scr Mat Min Exi Min Mat Gar Mat Gar Fac Sto Rec Fac Upp Machines Accessed 30 | . . 1 1 . 12 . 5 . . 7 2 2 . Terminals 20 | . . . . . 8 . 3 . . 6 1 2 . Fabricators . | . . . . . . . . . . . . . . Repair Stations . | . . . . . . . . . . . . . . Recycling Units 3 | . . . . . 1 . 1 . . . 1 . . Scanalyzers 2 | . . . . . 2 . . . . . . . . Garrison Access 3 | . . . . . 1 . 1 . . 1 . . . Total Hacks 74 | . . 1 1 . 34 . 14 . . 15 6 3 . Successful 44 | . . 1 1 . 21 . 8 . . 8 4 1 . Failed 30 | . . . . . 13 . 6 . . 7 2 2 . Catastrophic 3 | . . . . . . . 1 . . 1 . 1 . Database Lockouts . | . . . . . . . . . . . . . . Manual 33 | . . . 1 . 14 . 8 . . 10 . . . Terminals 53 | . . . . . 25 . 10 . . 14 1 3 . Fabricators . | . . . . . . . . . . . . . . Repair Stations . | . . . . . . . . . . . . . . Recycling Units 9 | . . . . . 2 . 2 . . . 5 . . Scanalyzers 6 | . . . . . 6 . . . . . . . . Garrison Access 4 | . . . . . 1 . 2 . . 1 . . . Terminal Hacks 21 | . . 1 1 . 8 . 4 . . 6 . 1 . Robot Analysis 2 | . . . . . 2 . . . . . . . . Open Door 4 | . . 1 . . . . . . . 3 . . . Branch Access Points 2 | . . . . . . . . . . 1 . 1 . Emergency Access Points 2 | . . . . . 1 . 1 . . . . . . Unreport Threat 4 | . . . . . . . 3 . . 1 . . . Locate Traps 1 | . . . . . 1 . . . . . . . . Hauler Manifests 1 | . . . . . 1 . . . . . . . . Zone Layout 4 | . . . . . 3 . . . . 1 . . . EX-Prototype ID Bank 1 | . . . 1 . . . . . . . . . . Fabricator Hacks . | . . . . . . . . . . . . . . Repair Station Hacks . | . . . . . . . . . . . . . . Recycling Unit Hacks 5 | . . . . . 1 . . . . . 4 . . Recycle Component 1 | . . . . . . . . . . . 1 . . Process 1 | . . . . . . . . . . . 1 . . Retrieve Matter 2 | . . . . . . . . . . . 2 . . Retrieve Components 1 | . . . . . 1 . . . . . . . . Scanalyzer 6 | . . . . . 6 . . . . . . . . Insert Component 3 | . . . . . 3 . . . . . . . . Analyze 3 | . . . . . 3 . . . . . . . . Garrison Access Hacks 3 | . . . . . 1 . 1 . . 1 . . . Unlock Access 2 | . . . . . 1 . 1 . . . . . . Seal Access 1 | . . . . . . . . . . 1 . . . Unauthorized Hacks 9 | . . . . . 5 . 3 . . 1 . . . Terminals 6 | . . . . . 4 . 1 . . 1 . . . Botnet 6 | . . . . . 4 . 1 . . 1 . . . Fabricators . | . . . . . . . . . . . . . . Repair Stations . | . . . . . . . . . . . . . . Recycling Units 2 | . . . . . 1 . 1 . . . . . . Recyclers 2 | . . . . . 1 . 1 . . . . . . Scanalyzers . | . . . . . . . . . . . . . . Garrison Access 1 | . . . . . . . 1 . . . . . . Reprogram 1 | . . . . . . . 1 . . . . . . Data Cores Recovered . | . . . . . . . . . . . . . . Used . | . . . . . . . . . . . . . . Hacking Detections 23 | . . . . . 11 . 4 . . 4 2 2 . Full Trace Events 1 | . . . . . 1 . . . . . . . . Feedback Events . | . . . . . . . . . . . . . . Feedback Blocked . | . . . . . . . . . . . . . . Robot Schematics Acquired . | . . . . . . . . . . . . . . Robots Built . | . . . . . . . . . . . . . . Matter . | . . . . . . . . . . . . . . Time . | . . . . . . . . . . . . . . Total Robot Build Rating . | . . . . . . . . . . . . . . Part Schematics Acquired 3 | . . . . . 3 . . . . . . . . Parts Built . | . . . . . . . . . . . . . . Matter . | . . . . . . . . . . . . . . Time . | . . . . . . . . . . . . . . Total Part Build Rating . | . . . . . . . . . . . . . . Parts Repaired . | . . . . . . . . . . . . . . Time . | . . . . . . . . . . . . . . Parts Recycled 1 | . . . . . . . . . . . 1 . . Recycled Matter 14 | . . . . . . . . . . . 14 . . Retrieved Matter 14 | . . . . . . . . . . . 14 . . Retrieved Components 9 | . . . . . 9 . . . . . . . . Parts Scanalyzed 3 | . . . . . 3 . . . . . . . . Part Schematics Acquired 3 | . . . . . 3 . . . . . . . . Parts Damaged . | . . . . . . . . . . . . . . Bothacking | -11 -10 -10 -10 -9 -8 -8 -8 -8 -7 -7 -7 -5 -5 ------------ Run | Scr Mat Min Exi Min Mat Gar Mat Gar Fac Sto Rec Fac Upp Used RIF Installer 2 | . . . . . . 1 . 1 . . . . . Coupler Efficiency 1 | . . . . . . . . 1 . . . . . Robots Hacked 9 | . . . . . . . 4 . 1 . 2 2 . Non-combat 5 | . . . . . . . 1 . 1 . 2 1 . Combat 4 | . . . . . . . 3 . . . . 1 . Robot Hacks Applied 11 | . . . . . . . 5 . 2 . 2 2 . parse_system 3 | . . . . . . . 1 . . . 1 1 . no_distress 1 | . . . . . . . . . . . 1 . . map_route 2 | . . . . . . . 1 . 1 . . . . formatsys_high 5 | . . . . . . . 3 . 1 . . 1 . Relay Couplers Released 16 | . . . . . . 12 . 4 . . . . . Machine Destruction 16 | . . . . . . 12 . 4 . . . . . Attached 7 | . . . . . . 1 3 . . 1 . 2 . Robots Rewired 15 | . . . 4 . . . . . . . 11 . . Allies Hacked . | . . . . . . . . . . . . . . Hacks Repelled . | . . . . . . . . . . . . . . Allies | -11 -10 -10 -10 -9 -8 -8 -8 -8 -7 -7 -7 -5 -5 -------- Run | Scr Mat Min Exi Min Mat Gar Mat Gar Fac Sto Rec Fac Upp Total Allies 20 | . . . 4 . . . 3 . 1 . 11 1 . Largest Group 11 | . . . 4 4 2 . 1 . 1 1 11 5 . Highest-Rated Group 227 | . . . 58 58 42 . 21 . 17 17 227 128 . Highest-Rated Ally 49 | . . . 21 21 21 . 21 . 17 17 37 49 . Total Orders 9 | . . . . . . . . . . . 9 . . FOLLOW 1 | . . . . . . . . . . . 1 . . GUARD 7 | . . . . . . . . . . . 7 . . DROP 1 | . . . . . . . . . . . 1 . . Ally Attacks 168 | . . . . 6 31 . 15 . . . 100 16 . Total Damage 2541 | . . . . 137 745 . 403 . . . 783 473 . Kills 39 | . . . . 2 13 . 3 . . . 18 3 . Allies Corrupted . | . . . . . . . . . . . . . . Allies Melted . | . . . . . . . . . . . . . . Intel | -11 -10 -10 -10 -9 -8 -8 -8 -8 -7 -7 -7 -5 -5 ------- Run | Scr Mat Min Exi Min Mat Gar Mat Gar Fac Sto Rec Fac Upp Robot Analysis Total 2 | . . . . . 2 . . . . . . . . Derelict Logs Recovered 3 | . . 1 . 1 . . . . . . . . 1 Drone Launches . | . . . . . . . . . . . . . . Drone Recoveries . | . . . . . . . . . . . . . . Exploration | -11 -10 -10 -10 -9 -8 -8 -8 -8 -7 -7 -7 -5 -5 ------------- Run | Scr Mat Min Exi Min Mat Gar Mat Gar Fac Sto Rec Fac Upp Turns Passed 8430 | 86 15 464 591 115 1208 1449 563 1268 91 912 699 508 461 Spaces Moved 4408 | 54 12 336 422 72 658 741 281 503 28 357 312 326 306 Core 19 | 5 . . . . . . . 12 . 1 . . 1 Treads 238 | . . . . . . . . . . 26 212 . . Legs 3298 | 49 12 336 422 72 658 741 281 471 28 228 . . . Wheels 731 | . . . . . . . . . . . 100 326 305 Hover . | . . . . . . . . . . . . . . Flight 122 | . . . . . . . . 20 . 102 . . . Fastest Speed 50 | 50 120 120 125 155 153 150 150 120 270 150 120 120 130 Average Speed 156 | 115 120 124 127 155 153 152 150 209 270 210 160 127 134 Slowest Speed 1550 | 150 120 125 155 155 153 155 150 750 270 900 180 130 1550 Overloaded Moves . | . . . . . . . . . . . . . . Propulsion Burnouts . | . . . . . . . . . . . . . . Robots Hopped . | . . . . . . . . . . . . . . Cave-ins Triggered . | . . . . . . . . . . . . . . Exploration Rate (%) 44 | 5 6 62 89 21 67 86 33 70 1 54 62 17 47 Regions Visited 13 Branch Regions 6 Pre-discovered Areas 1 | . . 1 . . . . . . . . . . . Known Exits Taken 5 | . . . . . 1 . 1 . . 1 1 1 . Unknown Exits Taken 6 | 1 1 1 1 1 . . . . 1 . . . . Scrap Searched 5 | . . 2 . . . . . . . . . . 3 Spaces Dug 135 | . . . . . 6 . . 7 . 53 . 69 . Terrain Destroyed 626 | . . 1 . . 12 102 . 78 . 189 104 128 12 Melee 7 | . . . . . . . . 7 . . . . . Projectile 58 | . . 1 . . 12 . . 4 . 18 7 4 12 AOE 561 | . . . . . . 102 . 67 . 171 97 124 . Terrain Rammed . | . . . . . . . . . . . . . . Walls Destroyed . | . . . . . . . . . . . . . . Machines Disabled . | . . . . . . . . . . . . . . Actions | -11 -10 -10 -10 -9 -8 -8 -8 -8 -7 -7 -7 -5 -5 --------- Run | Scr Mat Min Exi Min Mat Gar Mat Gar Fac Sto Rec Fac Upp Total 5395 | 69 12 377 477 74 785 941 381 628 38 441 447 387 338 Wait 244 | 1 . 21 1 . 23 29 63 4 4 13 70 4 11 Move 4396 | 53 11 335 421 71 657 740 280 502 27 356 311 326 306 Hop . | . . . . . . . . . . . . . . Pick Up 107 | 6 . 4 8 2 22 20 2 20 . 7 4 8 4 Fast Attach 39 | 6 1 2 1 . 6 2 2 4 . 12 1 2 . Attach 49 | . . . . . 5 7 3 18 . 3 3 6 4 Detach 8 | . . . . . . 2 . 5 . . 1 . . Swap 33 | . . 3 2 . 5 9 1 4 1 5 1 2 . Drop 98 | . . 7 7 . 21 23 4 10 . 14 2 8 2 Fire 268 | 3 . 5 2 1 46 89 18 35 . 29 12 17 11 Melee 56 | . . . . . . . 8 11 6 2 27 2 . Ram . | . . . . . . . . . . . . . . Kick . | . . . . . . . . . . . . . . Crush . | . . . . . . . . . . . . . . Escape Stasis 35 | . . . . . . 20 . 15 . . . . . Rewire 50 | . . . 35 . . . . . . . 15 . . Trap 12 | . . . . . . . . . . . . 12 . Miscellaneous . | . . . . . . . . . . . . . . Route ------- -11/Scrapyard -10/Materials -10/Mines (discovered 2 exits: [*Mat] / *Exi) -10/Exiles -9/Mines -8/Materials (discovered 3 exits: [*Fac x2] / Gar) -8/Garrison (discovered 3 exits: *Mat x3) -8/Materials (discovered 2 exits: [Fac] / Gar) -8/Garrison (discovered 3 exits: [*Fac x3]) -7/Factory (discovered 2 exits: *Sto / [Low]) -7/Storage -7/Recycling -5/Factory (discovered 3 exits: [*Fac] / *Upp x2) -5/Upper Caves History --------- Turn | Location | Event 28 | -11/Scrapyard | Discovered new exit (range 16) 87 | -11/Scrapyard | Entered Materials 87 | -10/Materials | Discovered new exit (range 8) 102 | -10/Materials | Entered Mines 161 | -10/Mines | Met a Derelict shopkeep closing up shop 324 | -10/Mines | Build established: Mutant 376 | -10/Mines | Discovered new exit (range 6) 497 | -10/Mines | Learned location of Storage (-7) 561 | -10/Mines | Deemed a non-threat by the Exiles lab entrance 561 | -10/Mines | Discovered new exit (range 5) 566 | -10/Mines | Entered Exiles 566 | -10/Exiles | Found Exiles lab destroyed 736 | -10/Exiles | Opened EX-Vault 745 | -10/Exiles | Found YOLO Cannon 1140 | -10/Exiles | Discovered new exit (range 12) 1157 | -10/Exiles | Entered Mines 1157 | -9/Mines | Accompanied by 4 allies 1194 | -9/Mines | Met a Derelict bent on vengeance 1231 | -9/Mines | Learned Materials emergency access door positions 1248 | -9/Mines | Discovered new exit (range 11) 1272 | -9/Mines | Entered Materials 1272 | -8/Materials | Accompanied by 2 allies 1272 | -8/Materials | Evolved 4 slots: Propulsion x1, Utility x2, Weapon x1 2055 | -8/Materials | Discovered new exit (range 7) 2417 | -8/Materials | Discovered new exit (range 15) 2458 | -8/Materials | Identified exit to Garrison 2480 | -8/Materials | Entered Garrison 2527 | -8/Garrison | Triggered checkpoint 2528 | -8/Garrison | Triggered checkpoint 2632 | -8/Garrison | Triggered checkpoint 2689 | -8/Garrison | Discovered new exit (range 10) 2863 | -8/Garrison | Discovered new exit (range 14) 2927 | -8/Garrison | Phase Generator disabled 3227 | -8/Garrison | Build established: Tank 3266 | -8/Garrison | Discovered new exit (range 14) 3295 | -8/Garrison | Installed Relay Interface Framework 3398 | -8/Garrison | Triggered checkpoint 3429 | -8/Garrison | Triggered checkpoint 3474 | -8/Garrison | Garrison Relay disabled 3658 | -8/Garrison | Triggered checkpoint 3677 | -8/Garrison | Garrison Relay disabled 3799 | -8/Garrison | Garrison Relay disabled 3929 | -8/Garrison | Entered Materials 4257 | -8/Materials | Discovered new exit (range 32) 4485 | -8/Materials | Identified exit to Garrison 4492 | -8/Materials | Entered Garrison 4558 | -8/Garrison | Triggered checkpoint 4568 | -8/Garrison | Core integrity fell below 50% 4624 | -8/Garrison | Garrison Relay disabled 4679 | -8/Garrison | Triggered checkpoint 4689 | -8/Garrison | Triggered checkpoint 4765 | -8/Garrison | Core integrity fell below 20% 4787 | -8/Garrison | Lost 6 parts (2p3n1w) 4847 | -8/Garrison | Build established: Bothacker-Mutant 5005 | -8/Garrison | Discovered new exit (range 10) 5154 | -8/Garrison | Build established: Bothacker-Tank 5181 | -8/Garrison | Discovered new exit (range 14) 5528 | -8/Garrison | Triggered checkpoint 5630 | -8/Garrison | Build established: Bothacker-Mutant 5708 | -8/Garrison | Discovered new exit (range 10) 5749 | -8/Garrison | Expanded RIF knowledge: Coupler Efficiency 5760 | -8/Garrison | Entered Factory 5760 | -7/Factory | Evolved 2 slots: Utility x2 5786 | -7/Factory | Discovered new exit (range 5) 5817 | -7/Factory | Discovered new exit (range 108) 5851 | -7/Factory | Entered Storage 5851 | -7/Storage | Accompanied by 1 ally 6003 | -7/Storage | Lost 4 parts (1p2n1w) 6209 | -7/Storage | Found Prototype Launcher 6209 | -7/Storage | Identified Rocket Array 6511 | -7/Storage | Identified exit to Recycling 6756 | -7/Storage | Used back door to open Recycling access 6763 | -7/Storage | Entered Recycling 6823 | -7/Recycling | Spotter reported a threat 6824 | -7/Recycling | Spotter reported a threat 6824 | -7/Recycling | Spotter reported a threat 6842 | -7/Recycling | Spotter reported a threat 6857 | -7/Recycling | Spotter reported a threat 6864 | -7/Recycling | Spotter reported a threat 6876 | -7/Recycling | Spotter reported a threat 6877 | -7/Recycling | Spotter reported a threat 6877 | -7/Recycling | Spotter reported a threat 6882 | -7/Recycling | Spotter reported a threat 6917 | -7/Recycling | Spotter reported a threat 6953 | -7/Recycling | Spotter reported a threat 6953 | -7/Recycling | Spotter reported a threat 7076 | -7/Recycling | Spotter reported a threat 7167 | -7/Recycling | Spotter reported a threat 7177 | -7/Recycling | Spotter reported a threat 7218 | -7/Recycling | Spotter reported a threat 7286 | -7/Recycling | Spotter reported a threat 7304 | -7/Recycling | Spotter reported a threat 7304 | -7/Recycling | Spotter reported a threat 7309 | -7/Recycling | Spotter reported a threat 7319 | -7/Recycling | Spotter reported a threat 7325 | -7/Recycling | Discovered new exit (range 15) 7357 | -7/Recycling | Spotter reported a threat 7357 | -7/Recycling | Spotter reported a threat 7369 | -7/Recycling | Identified exit to Factory 7396 | -7/Recycling | Spotter reported a threat 7396 | -7/Recycling | Spotter reported a threat 7410 | -7/Recycling | Spotter reported a threat 7424 | -7/Recycling | Spotter reported a threat 7449 | -7/Recycling | Spotter reported a threat 7462 | -7/Recycling | Entered Factory 7462 | -5/Factory | Accompanied by 5 allies 7462 | -5/Factory | Evolved 4 slots: Power x1, Utility x2, Weapon x1 7537 | -5/Factory | Identified exit to Upper Caves 7641 | -5/Factory | Discovered new exit (range 5) 7762 | -5/Factory | First assault squad dispatched 7970 | -5/Factory | Entered Upper Caves 8063 | -5/Upper Caves | Encountered a Warlord checkpoint 8128 | -5/Upper Caves | Learned Factory stockpile data 8258 | -5/Upper Caves | Build established: Bothacker-Tank 8374 | -5/Upper Caves | Attracted the attention of an 0b10 checkpoint 8408 | -5/Upper Caves | Core integrity fell below 50% 8428 | -5/Upper Caves | Core integrity fell below 20% 8432 | -5/Upper Caves | Core destroyed Last Messages --------------- 08409_ Penetrated by Slug. 08411_ Power failure, Enh. Nuclear Core shutdown. 08411_ Overheating: Lyr. Heavy Armor Plating damaged (-6). 08412_ Overheating: Core damaged (-120). 08412_ Lyr. Heavy Armor Plating destroyed. 08412_ Penetrated by Slug. 08413_ Power failure, Lgt. Nuclear Core shutdown. 08414_ Overheating: Broken Arm. Huge Wheel damaged (-12). 08415_ Broken Arm. Huge Wheel destroyed. 08416_ Y-64 Sentinel destroyed. 08417_ Phase Cannon permanently disabled. 08417_ Overheating: Short circuit. 08418_ Overheating: System interference. 08418_ Mass Driver temporarily disabled. 08419_ Acquired 18 matter. 08420_ Power failure, Lgt. Nuclear Core shutdown. 08420_ Power failure, Enh. Nuclear Core shutdown. 08426_ Overheating: Matter decay (-30). 08428_ Overheating: Core damaged (-110). 08432_ Overheating: Core damaged (-160). Map ----- +----------------------------------------------------+ | ???????????????????????????????### ###??????? | | ?????????????????????????????????## ##??????? | | ??????????????????????????????????## ###?????? | | ??????????????????????????????????## #??????# | | ?????????????????????????????????## #??????? | | ?????????????????????????????????# #??????? | | ?????????????????????????????????## ####???? | | ?????????????????????????????????## ###?? | | ?????????????????????????????????# #?? | | ?????????????????????????????????## ### #?? | | ??????????????????????????????????## #?## #?? | | ?????????????????????????? ???????## ##### ##? | | ?????????????????????????? ????????# #### ## | | ?????????????????????????? ???????## #?# | | ?????????????????????????? #??????# #?# ### | | ?????????????????????????? #??????## ## #?# | | ?????????????????????????? #???????###### #?# | | ?????????????????????????# #???????????## #?# | | ?????????????????????????# #?????????### #?## | | ?????????????????????????# #????????## #??## | | ?????????????????#???????# #?????#??# ##?## | | ?????????????##### #?????# #???? ##### ### | | ????????????## ???# #???? ### | | ????????????# ?## #???# ##### | | ??????????# ;; ;#; ##??# | | ?????????????#; @ ### | | ????????????#;; ;;#;! # # #### | | ????????????#; ??#; ##### | | ????????????## #### ; # #^ | | ?????????????# # # | | ?????????????# ## #### ## | | ?????????????########### # # #????###### | | ???????????????????????## ###^ # ##???????### | | ????????????????????????##?# #?######## | | ???????????????????????????### ####### | | ?????????????????????????????# | | ?????????????????????????????########## ####" | | ??????????????????????????????????????# ###"" | | ??????????????????????????????????????# """""" | | ??????????????????????????????????????# """ | | ??????????????????????????????????????# " """ | | ??????????????????????????????????????# """""" | | ??????????????????????????????????????# """""" | | ??????????????????????????????????????# """"" | | ??????????????????????????????????????# " "" | | ??????????????????????????????????????# !" "### | | ??????????????????????????????????????# %!""#### | | ??????????????????????????????????????# !! ! ! | | ??????????????????????????????????????# !| | | ??????????????????????????????????????############ | +----------------------------------------------------+ Best States ------------- Heat Dissipation 40 Energy Generation 28 Energy Capacity 490 Matter Stores 300 Matter Capacity 300 Sight Range 16 Terrain Scan Range 14 Terrain Scan Density 110 Jamming Range 14 Armor Coverage 600 Weapon Shielding 66 Reclamation Efficiency 20 Weapon Cycling 20 Evasion (%) 40 Recoil Reduction 2 Relay Coupler Types 76 Relay Coupler Value 3 Item Schematics ----------------- Mak. Axe | -8/Materials | Scanalyzed Lgt. Deuterium Engine | -8/Materials | Scanalyzed Hrd. Medium Armor Plating | -8/Materials | Scanalyzed Robot Schematics ------------------ None Fabricated ------------ Nothing Alien Tech Used ----------------- None Achievements -------------- None Challenges ------------ None Game ------ Seed BiocellThrusterCarapace Manual? 0 Play Time 02:33:26 Cumulative 106.8 hours Start 2020.09.18 @ 04:12:34 End 2020.09.18 @ 06:52:21 Sessions 1 Manual Loads 0 Difficulty Rogue Special Mode None Game No. 74 Rogue 74 Adventurer 0 Explorer 0 Win Type - Total 0 Types 0/0/0/0/0/0/0/0/0 Lore% 30 Gallery% 46 Achievement% 37 Wizard Run 0 Options --------- ASCII 0 Keyboard 0 Movement Numpad Keybinds 0 Fullscreen 0 Font 16/SmallcapsGlow Map View 76x50 Tactical HUD 1 Map Filters NONE Filters NONE Steam 1 RUN: 622b4bab-1093-4e8b-828e-4b67022929a5